bitfinex/quotes_BTCUSD_20230905
["timestamp","ask_amount","ask_price","bid_price","bid_amount"]
[1693927642388,0.18367225,25726.0,25724.0,2.332437]
[1693927642588,0.18367225,25726.0,25724.0,2.48709511]
[1693927642838,0.18367225,25726.0,25724.0,2.332437]
[1693927643582,0.20367225,25726.0,25724.0,2.333437]
[1693927643787,0.17190062,25725.0,25724.0,1.555956]
[1693927643914,0.6364125,25726.0,25724.0,0.001]
[1693927644130,0.59064527,25725.0,25724.0,0.001]
[1693927644338,0.19274968,25726.0,25724.0,0.778484]
[1693927644651,0.02,25726.0,25724.0,2.333452]
[1693927644882,0.19037036,25725.0,25724.0,0.778484]
[1693927645084,0.19037036,25725.0,25724.0,0.58407464]
[1693927645217,0.19037036,25725.0,25724.0,0.777484]
[1693927645647,0.40664527,25726.0,25724.0,0.777484]
[1693927645648,0.4986387,25726.0,25724.0,0.777484]
[1693927645844,0.09199343,25726.0,25724.0,0.777484]
[1693927646047,0.17240966,25725.0,25724.0,1.554968]
[1693927646246,0.18340966,25725.0,25724.0,0.779484]
[1693927646465,0.17240966,25725.0,25724.0,0.778484]
[1693927646865,0.17240966,25725.0,25724.0,0.777484]
[1693927647064,0.28281351,25725.0,25724.0,0.001]
[1693927647263,0.87345878,25725.0,25724.0,0.001]
[1693927647489,0.71204912,25725.0,25724.0,0.002]
[1693927647692,0.90223835,25725.0,25724.0,0.002]
[1693927648267,0.8028345,25725.0,25724.0,0.779484]
[1693927648677,0.8028345,25725.0,25724.0,0.002]
[1693927649301,0.8028345,25725.0,25724.0,0.779484]
[1693927649714,0.226,25725.0,25724.0,2.334452]
[1693927649931,0.022,25725.0,25724.0,2.540052]
[1693927650754,0.022,25725.0,25724.0,2.334452]
[1693927650956,0.25388595,25725.0,25724.0,2.334452]
[1693927651081,0.022,25725.0,25724.0,2.334452]
[1693927651282,0.48167252,25725.0,25724.0,2.334452]
[1693927651908,0.57948869,25725.0,25724.0,1.556968]
[1693927652130,0.78895604,25725.0,25724.0,0.78983254]
[1693927652581,0.69113987,25725.0,25724.0,0.78983254]
[1693927652761,0.69113987,25725.0,25724.0,1.56731654]
[1693927652952,0.69113987,25725.0,25724.0,0.01234854]
[1693927653153,1.28178514,25725.0,25724.0,0.01234854]
[1693927653352,1.25731779,25725.0,25724.0,0.01234854]
[1693927653590,2.42141606,25725.0,25724.0,0.01234854]
[1693927653793,2.23641606,25725.0,25724.0,0.002]
[1693927654005,2.41041606,25725.0,25724.0,0.001]
[1693927654169,0.0245435,25723.0,25721.0,1.555132]
[1693927654376,0.45967252,25722.0,25721.0,1.555132]
[1693927654577,1.94280569,25722.0,25718.0,1.5553]
[1693927654779,1.94280569,25722.0,25716.0,0.777707]
[1693927654780,0.38664527,25721.0,25716.0,0.777707]
[1693927655006,0.18575264,25717.0,25716.0,1.36101064]
[1693927655531,0.41794344,25717.0,25716.0,0.58329764]
[1693927655731,0.41794344,25717.0,25715.0,1.555492]
[1693927655732,0.41794344,25717.0,25715.0,0.777746]
[1693927655873,0.45973778,25717.0,25715.0,1.555485]
[1693927656265,0.13931983,25716.0,25715.0,0.777739]
[1693927656880,0.57240473,25716.0,25715.0,0.777739]
[1693927657235,0.57240473,25716.0,25714.0,1.555532]
[1693927657445,0.38664527,25715.0,25712.0,0.777837]
[1693927657646,0.21608758,25714.0,25712.0,0.777837]
[1693927657861,0.60273285,25714.0,25712.0,0.777837]
[1693927658886,0.38664527,25713.0,25711.0,0.777857]
[1693927659108,0.38664527,25713.0,25710.0,1.555804]
[1693927659300,0.38664527,25713.0,25711.0,0.777874]
[1693927659510,0.58896282,25713.0,25711.0,0.777874]
[1693927660128,0.59096282,25713.0,25711.0,0.777874]
[1693927660332,0.1631981,25712.0,25711.0,0.777874]
[1693927660532,0.54984337,25712.0,25710.0,1.555778]
[1693927661072,0.38664527,25711.0,25710.0,0.777889]
[1693927661283,0.66656136,25711.0,25709.0,0.777933]
[1693927661468,0.66656136,25711.0,25708.0,0.777948]
[1693927661673,0.85846136,25711.0,25708.0,0.777948]
[1693927661861,0.66656136,25711.0,25710.0,0.01122537]
[1693927662162,0.85256136,25711.0,25710.0,0.78913237]
[1693927662389,0.87256136,25711.0,25710.0,0.01122537]
[1693927662631,0.85256136,25711.0,25710.0,0.01122537]
[1693927662833,0.87256136,25711.0,25709.0,0.77792]
[1693927662963,0.30049671,25710.0,25708.0,1.555902]
[1693927663180,0.38664527,25709.0,25708.0,0.777948]
[1693927664473,0.37858469,25710.0,25708.0,1.555915]
[1693927664676,0.38664527,25710.0,25708.0,2.333882]
[1693927664882,0.001,25709.0,25708.0,1.555915]
[1693927665088,0.38964527,25709.0,25708.0,0.777948]
[1693927665301,0.003,25709.0,25708.0,1.555915]
[1693927665745,0.003,25709.0,25708.0,2.616322]
[1693927665746,0.001,25709.0,25708.0,2.616322]
[1693927665961,0.001,25709.0,25708.0,2.652942]
[1693927666168,0.001,25709.0,25708.0,3.21448727]
[1693927666370,0.18575946,25716.0,25710.0,0.04]
[1693927666579,0.09291986,25712.0,25711.0,3.26606611]
[1693927666784,0.18575946,25714.0,25711.0,3.443368]
[1693927666988,0.09291986,25715.0,25714.0,0.206]
[1693927667194,0.09291986,25715.0,25714.0,3.317144]
[1693927667832,0.09291986,25715.0,25714.0,3.420284]
[1693927668012,0.09291986,25715.0,25714.0,3.448864]
[1693927668239,0.09291986,25715.0,25714.0,3.84150927]
[1693927668440,0.09591986,25715.0,25714.0,4.28706927]
[1693927668642,0.09391986,25715.0,25714.0,4.14150927]
[1693927668846,0.09391986,25715.0,25714.0,4.13316927]
[1693927669049,0.09591986,25715.0,25714.0,3.724044]
[1693927669262,0.09591986,25715.0,25714.0,3.722484]
[1693927669475,0.09591986,25715.0,25714.0,3.639144]
[1693927669895,0.09591986,25715.0,25714.0,3.707244]
[1693927670072,0.09491986,25715.0,25714.0,3.719904]
[1693927670300,0.09491986,25715.0,25714.0,3.700624]
[1693927670518,0.09691986,25715.0,25714.0,3.114144]
[1693927670738,0.27653898,25715.0,25714.0,3.114144]
[1693927670886,0.27253898,25715.0,25714.0,1.555572]
[1693927671093,0.27453898,25715.0,25714.0,1.557572]
[1693927671292,0.002,25715.0,25714.0,2.335358]
[1693927671506,0.002,25715.0,25714.0,2.334358]
[1693927671840,0.004,25715.0,25714.0,2.334358]
[1693927671975,0.002,25715.0,25714.0,2.334358]
[1693927672389,0.013,25715.0,25714.0,2.6455746]
[1693927672714,0.013,25715.0,25714.0,2.454638]
[1693927672715,0.0929793,25715.0,25714.0,2.454638]
[1693927672919,0.2323591,25715.0,25714.0,2.353358]
[1693927673124,0.2423591,25715.0,25714.0,2.333358]
[1693927673529,0.2323591,25715.0,25714.0,2.333358]
[1693927674064,0.2353591,25715.0,25714.0,2.333358]
[1693927674599,0.003,25715.0,25714.0,2.33068285]
[1693927675112,0.003,25715.0,25714.0,2.40082285]
[1693927675313,0.003,25715.0,25714.0,2.42002285]
[1693927675518,0.003,25715.0,25714.0,2.42470285]
[1693927675725,0.003,25715.0,25714.0,2.46840285]
[1693927675902,0.003,25715.0,25714.0,2.46486285]
[1693927676102,0.003,25715.0,25714.0,2.85732812]
[1693927676312,0.04,25725.0,25714.0,3.44630812]
[1693927676313,0.0048,25725.0,25714.0,3.44630812]
[1693927676520,0.1755781,25725.0,25723.0,0.206]
[1693927676726,0.1755781,25725.0,25724.0,3.26459411]
[1693927676727,0.1707781,25725.0,25724.0,3.26459411]
[1693927677343,0.1707781,25725.0,25724.0,3.12120362]
[1693927677547,0.12,25729.0,25724.0,3.12120362]
[1693927677785,0.24074554,25725.0,25724.0,3.12120362]
[1693927677989,0.024,25725.0,25724.0,3.12120362]
[1693927678441,0.37221273,25731.0,25725.0,0.4669]
[1693927678660,0.37221273,25731.0,25724.0,3.89609398]
[1693927678661,0.45969657,25725.0,25724.0,1.51174432]
[1693927678876,0.45969657,25725.0,25724.0,1.60512097]
[1693927679073,0.45969657,25725.0,25724.0,2.34371962]
[1693927679285,0.54369657,25725.0,25724.0,2.34571962]
[1693927679500,0.54369657,25725.0,25724.0,1.56823562]
[1693927679927,1.02741171,25725.0,25724.0,0.01126762]
[1693927680359,1.02741171,25725.0,25723.0,1.555011]
[1693927680568,0.061,25725.0,25724.0,0.788484]
[1693927680802,0.061,25725.0,25724.0,2.343452]
[1693927681010,0.06,25725.0,25724.0,2.332452]
[1693927681468,0.084,25725.0,25724.0,2.41898695]
[1693927681691,0.52350212,25726.0,25724.0,2.42012695]
[1693927681906,0.024,25725.0,25724.0,2.42042695]
[1693927682137,0.084,25725.0,25724.0,2.41586695]
[1693927682341,0.084,25725.0,25724.0,2.41588695]
[1693927682580,0.064,25725.0,25724.0,2.41870695]
[1693927682830,0.024,25725.0,25724.0,3.32441757]
[1693927683074,0.06,25728.0,25724.0,3.31257757]
[1693927683274,0.06,25728.0,25724.0,3.09477041]
[1693927683275,0.001,25725.0,25724.0,3.09477041]
[1693927683483,0.001,25725.0,25724.0,2.9399923]
[1693927683662,0.002,25725.0,25724.0,2.8104723]
[1693927683897,0.02,25727.0,25724.0,2.5881723]
[1693927683898,0.23406725,25727.0,25724.0,2.5881723]
[1693927684142,0.002,25725.0,25724.0,2.64746695]
[1693927684351,0.002,25725.0,25724.0,2.66672695]
[1693927684562,0.002,25725.0,25724.0,2.66764695]
[1693927684799,0.002,25725.0,25724.0,2.64512695]
[1693927685003,0.004,25725.0,25724.0,2.57328695]
[1693927685475,0.002,25725.0,25724.0,0.01523495]
[1693927685679,0.002,25725.0,25724.0,0.01823495]
[1693927685883,0.002,25725.0,25724.0,0.22383495]
[1693927686096,0.002,25725.0,25724.0,0.22083495]
[1693927686486,0.004,25725.0,25724.0,0.73578022]
[1693927686695,0.004,25725.0,25724.0,0.80654557]
[1693927686892,0.004,25725.0,25724.0,0.80078557]
[1693927687098,0.004,25725.0,25724.0,0.72062022]
[1693927687303,0.004,25725.0,25724.0,0.72302022]
[1693927687510,0.004,25725.0,25724.0,0.33145495]
[1693927687717,0.004,25725.0,25724.0,0.26083495]
[1693927687913,0.004,25725.0,25724.0,0.24083495]
[1693927688296,0.004,25725.0,25724.0,0.46263571]
[1693927688500,0.004,25725.0,25724.0,0.71448022]
[1693927688704,0.004,25725.0,25724.0,0.70080022]
[1693927688968,0.004,25725.0,25724.0,0.62748022]
[1693927689247,0.004,25725.0,25724.0,0.71082022]
[1693927689543,0.004,25725.0,25724.0,0.72312022]
[1693927689760,0.004,25725.0,25724.0,0.74204022]
[1693927689893,0.004,25725.0,25724.0,0.74942022]
[1693927690100,0.004,25725.0,25724.0,0.74918022]
[1693927690299,0.004,25725.0,25724.0,0.72734022]
[1693927690538,0.004,25725.0,25724.0,0.34321495]
[1693927690691,0.004,25725.0,25724.0,0.73562022]
[1693927691065,0.004,25725.0,25724.0,0.73610022]
[1693927691217,0.004,25725.0,25724.0,0.73382022]
[1693927691418,0.004,25725.0,25724.0,0.73046022]
[1693927691756,0.004,25725.0,25724.0,0.64748022]
[1693927691965,0.004,25725.0,25724.0,0.73088022]
[1693927692176,0.004,25725.0,25724.0,0.71750022]
[1693927692382,0.004,25725.0,25724.0,0.03523495]
[1693927693645,0.20216082,25725.0,25724.0,0.03523495]
[1693927693855,0.28880607,25725.0,25724.0,0.03523495]
[1693927695083,0.25716082,25725.0,25724.0,0.01523495]
[1693927695630,0.25716082,25725.0,25724.0,0.01823495]
[1693927695838,0.64380609,25725.0,25724.0,0.01823495]
[1693927696076,0.44664527,25725.0,25724.0,0.01523495]
[1693927696298,0.44664527,25725.0,25724.0,0.01123495]
[1693927696511,0.5472098,25725.0,25724.0,0.002]
[1693927696642,0.76117941,25725.0,25724.0,0.002]
[1693927696854,0.5452098,25725.0,25724.0,0.001]
[1693927697060,0.63814548,25725.0,25724.0,0.001]
[1693927697268,0.5452098,25725.0,25724.0,0.001]
[1693927697470,0.64714548,25725.0,25724.0,0.001]
[1693927697745,0.5542098,25725.0,25724.0,0.001]
[1693927697947,0.5542098,25725.0,25716.0,0.2056]
[1693927697948,0.04,25720.0,25717.0,0.0663]
[1693927698183,0.04,25720.0,25718.0,0.04719]
[1693927698390,0.04,25720.0,25718.0,0.08607535]
[1693927698597,0.04,25720.0,25718.0,0.09727944]
[1693927698798,0.04,25720.0,25719.0,0.07212]
[1693927699004,0.04,25720.0,25719.0,0.0965]
[1693927699129,0.04,25720.0,25719.0,0.09632]
[1693927699338,0.04,25720.0,25718.0,0.05008944]
[1693927699516,0.04,25720.0,25718.0,0.01120409]
[1693927699721,0.042,25720.0,25718.0,0.01620409]
[1693927699929,0.04,25720.0,25716.0,0.28042]
[1693927700134,0.04,25720.0,25717.0,0.02]
[1693927700342,0.043,25720.0,25719.0,0.005]
[1693927700550,0.04,25720.0,25716.0,0.28072]
[1693927700770,0.04,25720.0,25717.0,0.08732]
[1693927700998,0.0879514,25720.0,25718.0,0.029]
[1693927701183,0.0859514,25720.0,25718.0,0.024]
[1693927701392,0.0839514,25720.0,25717.0,0.02]
[1693927701596,0.0859514,25720.0,25717.0,0.02]
[1693927701858,0.042,25720.0,25717.0,0.02]
[1693927702290,0.26342041,25720.0,25715.0,0.07566]
[1693927702489,0.26342041,25720.0,25719.0,0.005]
[1693927702796,0.26542041,25720.0,25717.0,0.024]
[1693927703310,0.26542041,25720.0,25717.0,0.029]
[1693927703311,0.26742041,25720.0,25717.0,0.029]
[1693927703590,0.21507089,25719.0,25717.0,0.024]
[1693927704007,0.21507089,25719.0,25714.0,0.32]
[1693927704220,0.02,25715.0,25713.0,0.03093393]
[1693927704440,0.02,25715.0,25710.0,0.27169165]
[1693927704441,0.02,25715.0,25710.0,0.20506]
[1693927704675,0.02,25715.0,25710.0,0.169706]
[1693927704890,0.22021524,25714.0,25710.0,0.169706]
[1693927705100,0.22021524,25714.0,25710.0,0.1372]
[1693927705888,0.22021524,25714.0,25710.0,0.1492]
[1693927706104,0.22021524,25714.0,25711.0,0.3]
[1693927706232,0.42664527,25714.0,25711.0,0.3]
[1693927706444,0.4898098,25714.0,25710.0,0.012]
[1693927706637,0.4908098,25714.0,25710.0,0.016]
[1693927706850,0.02,25711.0,25710.0,0.016]
[1693927707265,0.20701293,25711.0,25710.0,0.012]
[1693927707465,0.02,25711.0,25710.0,0.012]
[1693927708008,0.02,25711.0,25708.0,0.07548]
[1693927708159,0.02,25711.0,25710.0,0.012]
[1693927708795,0.20440282,25711.0,25708.0,0.36624]
[1693927709008,0.20640282,25711.0,25710.0,0.024]
[1693927709214,0.20840282,25711.0,25710.0,0.028]
[1693927709661,0.7337329,25711.0,25710.0,0.004]
[1693927710612,0.7337329,25711.0,25705.0,0.1372]
[1693927710613,0.04,25709.0,25705.0,0.1372]
[1693927710793,0.50733008,25711.0,25703.0,0.1372]
[1693927710794,0.02,25707.0,25703.0,0.1372]
[1693927711145,0.02,25707.0,25706.0,0.01093559]
[1693927711353,0.02,25710.0,25706.0,0.04982094]
[1693927711560,0.04,25710.0,25707.0,0.19354346]
[1693927711755,0.04,25710.0,25709.0,0.1372]
[1693927711982,0.05,25711.0,25709.0,0.17608535]
[1693927712188,0.04,25711.0,25709.0,0.28684535]
[1693927712337,0.04,25711.0,25710.0,0.08532]
[1693927712545,0.42664527,25711.0,25710.0,0.08172]
[1693927712749,0.67607394,25711.0,25707.0,0.02395199]
[1693927712960,0.04,25709.0,25707.0,0.02395199]
[1693927713186,0.42664527,25709.0,25707.0,0.02395199]
[1693927713600,0.04,25709.0,25707.0,0.02395199]
[1693927713805,0.04,25709.0,25707.0,0.16115199]
[1693927713979,0.04,25709.0,25708.0,0.06882]
[1693927714181,0.04,25709.0,25708.0,0.0702]
[1693927714375,0.04,25709.0,25708.0,0.06924]
[1693927714583,0.04,25709.0,25707.0,0.14815199]
[1693927715010,0.04,25709.0,25708.0,0.06744]
[1693927715219,0.041,25709.0,25708.0,0.0802]
[1693927715460,0.041,25709.0,25708.0,1.6842832]
[1693927715461,0.002,25709.0,25708.0,1.6842832]
[1693927715676,0.002,25709.0,25708.0,2.769775]
[1693927715939,0.002,25709.0,25708.0,2.773135]
[1693927716154,0.22158771,25709.0,25708.0,2.346895]
[1693927716384,0.60723298,25709.0,25708.0,2.346895]
[1693927716592,0.22158771,25709.0,25708.0,2.351895]
[1693927717014,0.042,25709.0,25708.0,2.351895]
[1693927717839,0.2307322,25709.0,25708.0,2.351895]
[1693927718400,0.042,25709.0,25708.0,2.351895]
[1693927718824,0.042,25709.0,25708.0,2.426595]
[1693927719027,0.042,25709.0,25708.0,2.427195]
[1693927719230,0.002,25709.0,25708.0,2.427555]
[1693927719430,0.002,25709.0,25708.0,2.471715]
[1693927719651,0.002,25709.0,25708.0,2.86016027]
[1693927719872,0.002,25709.0,25708.0,2.88412027]
[1693927720180,0.002,25709.0,25708.0,2.88592027]
[1693927720404,0.04,25715.0,25708.0,3.51472027]
[1693927720609,0.02,25715.0,25714.0,0.1372]
[1693927720810,0.02,25715.0,25714.0,3.43044211]
[1693927720991,0.04,25716.0,25714.0,3.40300211]
[1693927721218,0.04,25716.0,25714.0,3.49036211]
[1693927721427,0.04,25716.0,25714.0,3.327424]
[1693927721636,0.04,25716.0,25714.0,3.319264]
[1693927721825,0.04,25716.0,25714.0,3.316204]
[1693927722034,0.04,25716.0,25714.0,3.325984]
[1693927722244,0.04,25716.0,25714.0,3.328564]
[1693927722381,0.04,25716.0,25714.0,3.327804]
[1693927722584,0.04,25716.0,25714.0,3.330804]
[1693927722808,0.04,25716.0,25714.0,3.328404]
[1693927723011,0.002,25715.0,25714.0,3.318144]
[1693927723162,0.04,25716.0,25714.0,3.250344]
[1693927723392,0.04,25716.0,25714.0,3.316404]
[1693927723599,0.041,25716.0,25714.0,3.321044]
[1693927723845,0.041,25716.0,25714.0,3.329004]
[1693927724048,0.041,25716.0,25714.0,3.334164]
[1693927724251,0.002,25715.0,25714.0,3.346624]
[1693927724451,0.002,25715.0,25714.0,3.344764]
[1693927724652,0.002,25715.0,25714.0,3.341824]
[1693927724856,0.002,25715.0,25714.0,3.272344]
[1693927725059,0.002,25715.0,25714.0,3.341104]
[1693927725281,0.002,25715.0,25714.0,3.351104]
[1693927725483,0.002,25715.0,25714.0,3.381204]
[1693927725686,0.002,25715.0,25714.0,3.386724]
[1693927726015,0.002,25715.0,25714.0,3.407304]
[1693927726222,0.002,25715.0,25714.0,3.396344]
[1693927726426,0.004,25715.0,25714.0,3.695304]
[1693927726599,0.004,25715.0,25714.0,3.70775312]
[1693927726837,0.004,25715.0,25714.0,3.70931312]
[1693927727055,0.004,25715.0,25714.0,3.70895312]
[1693927727262,0.004,25715.0,25714.0,3.68895312]
[1693927727471,0.18246163,25715.0,25714.0,2.37838712]
[1693927727679,0.20470779,25715.0,25714.0,2.37838712]
[1693927728096,0.63135306,25715.0,25714.0,0.04502912]
[1693927728487,0.81735306,25715.0,25714.0,0.04502912]
[1693927728935,0.7951069,25715.0,25714.0,0.04502912]
[1693927729139,0.7951069,25715.0,25714.0,0.82281512]
[1693927729343,0.7951069,25715.0,25714.0,1.60060112]
[1693927729752,0.7931069,25715.0,25714.0,1.58760112]
[1693927729931,0.42664527,25715.0,25714.0,1.56760112]
[1693927730084,0.43764527,25715.0,25714.0,2.34638712]
[1693927730286,0.44464527,25715.0,25714.0,2.34738712]
[1693927730492,0.74098364,25715.0,25714.0,1.56960112]
[1693927730724,0.73398364,25715.0,25714.0,1.56860112]
[1693927730939,0.53126764,25715.0,25714.0,0.79081512]
[1693927731131,0.53126764,25715.0,25714.0,0.01402912]
[1693927731132,0.75303155,25715.0,25714.0,0.01402912]
[1693927731331,1.31602364,25715.0,25714.0,0.01402912]
[1693927731493,2.09377964,25715.0,25714.0,0.01402912]
[1693927731693,2.87153564,25715.0,25714.0,0.01402912]
[1693927732311,3.03878154,25715.0,25714.0,0.01402912]
[1693927732721,2.87153564,25715.0,25714.0,0.01402912]
[1693927733070,3.05176314,25715.0,25714.0,0.01402912]
[1693927733272,3.04385079,25715.0,25714.0,0.01402912]
[1693927733502,2.87153564,25715.0,25714.0,0.01402912]
[1693927733639,3.11301208,25715.0,25714.0,0.01302912]
[1693927733840,3.23601208,25715.0,25714.0,0.01502912]
[1693927734051,3.39321208,25715.0,25714.0,0.01502912]
[1693927734244,3.30040964,25715.0,25714.0,0.01502912]
[1693927734466,3.27740964,25715.0,25714.0,0.01302912]
[1693927734711,3.30839451,25715.0,25714.0,0.01302912]
[1693927734999,3.33139451,25715.0,25714.0,0.01502912]
[1693927735320,3.32039451,25715.0,25714.0,0.01402912]
[1693927735736,3.17620964,25715.0,25714.0,0.01402912]
[1693927736366,3.31340964,25715.0,25714.0,0.01402912]
[1693927736791,3.31340964,25715.0,25714.0,0.002]
[1693927737238,3.31340964,25715.0,25714.0,0.01357302]
[1693927737239,3.65340964,25715.0,25714.0,0.01357302]
[1693927737461,3.64840964,25715.0,25714.0,0.002]
[1693927738339,4.26516982,25715.0,25714.0,0.002]
[1693927739707,0.04,25708.0,25707.0,1.555966]
[1693927739909,0.42664527,25708.0,25707.0,1.555966]
[1693927740217,0.81714527,25708.0,25707.0,1.56757053]
[1693927740632,0.81714527,25708.0,25707.0,2.34556853]
[1693927741285,0.4305,25708.0,25707.0,2.34556853]
[1693927741502,0.4305,25708.0,25707.0,2.48276853]
[1693927741923,0.09290338,25710.0,25707.0,2.48276853]
[1693927741924,0.04,25709.0,25707.0,2.57006853]
[1693927742143,0.04,25709.0,25707.0,2.44438853]
[1693927742144,0.001,25708.0,25707.0,2.44438853]
[1693927742343,0.001,25708.0,25707.0,2.48276853]
[1693927742564,0.001,25708.0,25707.0,2.58380853]
[1693927742764,0.04,25709.0,25707.0,2.59358853]
[1693927742976,0.04,25709.0,25707.0,2.59478853]
[1693927743180,0.041,25709.0,25708.0,2.429601]
[1693927743428,0.04,25709.0,25708.0,2.431941]
[1693927743556,0.041,25709.0,25708.0,2.424981]
[1693927743753,0.041,25709.0,25708.0,2.4362352]
[1693927743978,0.04,25709.0,25708.0,2.4442152]
[1693927744158,0.02,25709.0,25708.0,2.4667352]
[1693927744369,0.09290338,25710.0,25708.0,2.89526582]
[1693927744573,0.09290338,25710.0,25709.0,0.1572]
[1693927744790,0.09290338,25710.0,25709.0,2.94989635]
[1693927744996,0.09290338,25710.0,25709.0,2.95235635]
[1693927745208,0.09290338,25710.0,25709.0,3.34476162]
[1693927745411,0.09290338,25710.0,25709.0,3.49278162]
[1693927745619,0.13935507,25711.0,25709.0,3.91300162]
[1693927745820,0.41806523,25712.0,25710.0,0.68664527]
[1693927746062,0.1048,25719.0,25711.0,3.268708]
[1693927746063,0.04,25714.0,25711.0,3.268708]
[1693927746281,0.04,25715.0,25714.0,2.470558]
[1693927746478,0.04,25715.0,25714.0,3.268344]
[1693927746870,0.04,25715.0,25714.0,3.336864]
[1693927747085,0.04,25715.0,25714.0,3.358644]
[1693927747086,0.02,25715.0,25714.0,3.358644]
[1693927747330,0.02,25716.0,25714.0,3.358644]
[1693927747455,0.02,25716.0,25715.0,0.02]
[1693927747654,0.02,25716.0,25715.0,2.441408]
[1693927748057,0.22580677,25718.0,25715.0,2.443868]
[1693927748254,0.04,25718.0,25716.0,0.1372]
[1693927748418,0.04,25718.0,25717.0,2.333085]
[1693927748802,0.24633413,25718.0,25717.0,2.333085]
[1693927749355,0.064,25718.0,25717.0,2.333085]
[1693927749563,0.061,25718.0,25717.0,2.334085]
[1693927749769,0.085,25718.0,25717.0,2.335085]
[1693927753789,0.26142961,25718.0,25717.0,2.335085]
[1693927754411,0.58693871,25718.0,25717.0,2.335085]
[1693927754588,0.26142961,25718.0,25717.0,2.335085]
[1693927754991,0.26142961,25718.0,25717.0,2.34641966]
[1693927755570,0.44760011,25718.0,25717.0,2.34641966]
[1693927756000,0.58723399,25718.0,25717.0,2.34641966]
[1693927756218,1.53320417,25718.0,25717.0,0.01333466]
[1693927756577,2.31086917,25718.0,25717.0,0.01333466]
[1693927756784,3.24853417,25718.0,25717.0,0.01333466]
[1693927756996,3.54853417,25718.0,25717.0,0.01333466]
[1693927757209,3.36236367,25718.0,25717.0,0.01333466]
[1693927757416,3.36236367,25718.0,25717.0,0.002]
[1693927757624,0.04,25713.0,25712.0,1.555653]
[1693927757834,0.42664527,25713.0,25712.0,1.555653]
[1693927758039,0.81664527,25713.0,25712.0,1.555653]
[1693927758949,0.449,25713.0,25712.0,1.7890038]
[1693927759159,0.083,25713.0,25712.0,2.470699]
[1693927759371,0.083,25713.0,25712.0,2.333499]
[1693927759579,0.04,25712.0,25711.0,1.55573]
[1693927760009,0.04,25712.0,25711.0,2.333607]
[1693927761802,0.05,25712.0,25711.0,2.333607]
[1693927761971,0.052,25712.0,25711.0,2.471807]
[1693927762179,0.052,25712.0,25711.0,2.562187]
[1693927762416,0.012,25712.0,25711.0,2.563327]
[1693927762625,0.012,25712.0,25711.0,2.589187]
[1693927762835,0.012,25712.0,25711.0,2.585107]
[1693927763043,0.012,25712.0,25711.0,2.589067]
[1693927763247,0.012,25712.0,25711.0,2.589607]
[1693927763457,0.012,25712.0,25711.0,3.34465762]
[1693927763682,0.012,25712.0,25711.0,3.49429762]
[1693927763891,0.012,25712.0,25711.0,3.34225762]
[1693927764095,0.012,25712.0,25711.0,3.48265762]
[1693927764280,0.012,25712.0,25711.0,3.48217762]
[1693927764578,0.012,25712.0,25711.0,3.48169762]
[1693927764783,0.012,25712.0,25711.0,3.48253762]
[1693927764988,0.012,25712.0,25711.0,3.48673762]
[1693927765203,0.02,25717.0,25712.0,0.6441]
[1693927765414,0.02,25717.0,25716.0,0.1372]
[1693927765619,0.02,25717.0,25716.0,1.84730811]
[1693927765824,0.02,25717.0,25716.0,4.32781581]
[1693927766026,0.02,25717.0,25716.0,4.32763581]
[1693927766231,0.02,25717.0,25716.0,0.44423081]
[1693927766449,0.028,25717.0,25716.0,0.64716527]
[1693927766653,0.09308585,25719.0,25716.0,0.69103062]
[1693927766858,0.09308585,25719.0,25718.0,0.1372]
[1693927767239,0.09308585,25719.0,25718.0,0.24162]
[1693927767444,0.09308585,25719.0,25718.0,0.2424]
[1693927767647,0.09308585,25719.0,25718.0,0.33853306]
[1693927767851,0.09308585,25719.0,25718.0,0.25399306]
[1693927768223,0.25435242,25719.0,25718.0,0.1622]
[1693927768422,0.16726657,25719.0,25718.0,0.1732]
[1693927768647,0.16726657,25719.0,25718.0,0.1532]
[1693927769970,0.003,25719.0,25718.0,0.1532]
[1693927770357,0.169418,25719.0,25718.0,0.1532]
[1693927770728,0.209418,25719.0,25718.0,0.1532]
[1693927771287,0.209418,25719.0,25718.0,0.1668759]
[1693927771493,0.043,25719.0,25718.0,0.1668759]
[1693927772337,0.50956198,25719.0,25718.0,0.0296759]
[1693927772568,0.90214327,25719.0,25718.0,0.0296759]
[1693927772778,0.90214327,25719.0,25718.0,0.016]
[1693927772993,0.2285,25719.0,25718.0,0.016]
[1693927773198,0.043,25719.0,25718.0,0.1532]
[1693927773633,0.041,25719.0,25718.0,0.1482]
[1693927773844,0.041,25719.0,25718.0,0.1412]
[1693927774052,0.041,25719.0,25718.0,0.1442]
[1693927774252,0.17963469,25719.0,25718.0,0.1402]
[1693927774459,0.17963469,25719.0,25718.0,0.1372]
[1693927774687,0.18863469,25719.0,25718.0,0.1392]
[1693927775890,0.049,25719.0,25718.0,0.1392]
[1693927776667,0.23339156,25719.0,25718.0,0.1392]
[1693927777630,0.049,25719.0,25718.0,0.1392]
[1693927778627,0.25803185,25719.0,25718.0,0.1392]
[1693927778910,0.28362734,25719.0,25718.0,0.11238273]
[1693927779076,0.25803185,25719.0,25718.0,0.11238273]
[1693927779449,0.35111379,25719.0,25718.0,0.11238273]
[1693927779655,0.35111379,25719.0,25718.0,0.002]
[1693927780189,0.35111513,25719.0,25718.0,0.002]
[1693927780344,0.52872855,25719.0,25718.0,0.002]
[1693927780548,0.66835876,25719.0,25718.0,0.002]
[1693927780935,0.80009324,25719.0,25718.0,0.002]
[1693927781337,0.79509324,25719.0,25718.0,0.002]
[1693927782364,0.40844797,25719.0,25718.0,0.002]
[1693927784279,0.26881776,25719.0,25718.0,0.002]
[1693927786297,1.01474447,25719.0,25718.0,0.002]
[1693927786702,0.82856957,25719.0,25718.0,0.002]